bitfinex-derivatives/quotes_SOLF0:USTF0_20251107
["timestamp","ask_amount","ask_price","bid_price","bid_amount"]
[1762482686410,0.04499318,156.39,156.36,2.13255059]
[1762482687116,0.04499318,156.39,156.38,5.7582]
[1762482688113,0.04499318,156.39,156.36,7.89155059]
[1762482688313,0.04499318,156.39,156.36,0.04255059]
[1762482688920,0.04499318,156.39,156.36,2.13255059]
[1762482689618,0.04499318,156.39,156.37,7.8486]
[1762482692120,0.04499318,156.39,156.38,2.09]
[1762482694426,4.98479409,156.45,156.38,2.09]
[1762482694427,8.87686617,156.5,156.43,2.09]
[1762482694720,12.58997299,156.49,156.43,2.09]
[1762482694913,12.58997299,156.48,156.43,2.09]
[1762482695115,4.66414742,156.47,156.43,7.8464]
[1762482695310,0.0450051,156.47,156.43,2.13048139]
[1762482696117,0.0450051,156.47,156.43,0.04048139]
[1762482696118,2.9850051,156.47,156.43,0.04048139]
[1762482696317,7.6044714,156.46,156.43,0.04048139]
[1762482696517,2.94,156.46,156.43,0.04048139]
[1762482696718,2.94,156.44,156.35,2.09]
[1762482697024,2.94,156.42,156.35,2.09]
[1762482697415,2.94,156.42,156.36,5.7589]
[1762482697625,2.94,156.4,156.36,5.7589]
[1762482697824,2.94,156.4,156.37,0.04178905]
[1762482699912,7.78951414,156.39,156.37,0.04178905]
[1762482700119,3.09,156.39,156.31,19.1]
[1762482700420,7.79003915,156.38,156.31,24.8609]
[1762482700623,3.09,156.38,156.32,2.09]
[1762482700929,3.09,156.38,156.33,2.09]
[1762482701119,0.04879982,156.37,156.34,2.13651007]
[1762482701324,0.04879982,156.37,156.34,2.13141124]
[1762482701325,0.04729393,156.37,156.34,2.13141124]
[1762482701525,0.04729393,156.37,156.36,2.09]
[1762482701828,0.04729393,156.37,156.34,2.13141124]
[1762482702120,0.04729393,156.37,156.35,5.7593]
[1762482702325,0.04729393,156.37,156.35,7.8493]
[1762482702722,0.04729393,156.37,156.36,2.09]
[1762482703228,0.04729393,156.37,156.36,3.37]
[1762482703631,0.04729393,156.37,156.36,2.09]
[1762482704322,4.70066416,156.41,156.38,2.09]
[1762482704516,3.13,156.45,156.38,2.09]
[1762482704718,4.70047434,156.44,156.38,2.09]
[1762482704923,3.13,156.42,156.34,2.09]
[1762482705322,0.04388182,156.4,156.36,2.13572579]
[1762482705625,3.17114685,156.4,156.36,0.04509383]
[1762482706432,0.04114685,156.4,156.36,2.13509383]
[1762482706633,3.17114685,156.4,156.36,0.04509383]
[1762482707032,3.17114685,156.4,156.37,5.7586]
[1762482707327,0.04114685,156.4,156.37,5.7586]
[1762482707534,0.04114685,156.4,156.37,2.09]
[1762482707721,3.17114685,156.4,156.36,0.04509383]
[1762482708029,0.04114685,156.4,156.36,2.13509383]
[1762482708335,0.04114685,156.4,156.38,5.7582]
[1762482709032,0.04114685,156.4,156.38,7.8482]
[1762482709226,0.04114685,156.4,156.39,2.09]
[1762482709427,0.04114685,156.4,156.38,7.8482]
[1762482709632,0.04114685,156.4,156.37,2.09]
[1762482710232,0.04114685,156.4,156.38,5.7583]
[1762482710930,0.04114685,156.4,156.37,2.09]
[1762482711929,0.04114685,156.4,156.37,7.8486]
[1762482712123,0.04114685,156.4,156.37,2.09]
[1762482712322,3.17114685,156.4,156.36,0.04509383]
[1762482712522,3.17114685,156.4,156.36,7.89409383]
[1762482712722,4.70770221,156.39,156.36,7.89409383]
[1762482712924,3.17114685,156.4,156.36,7.89409383]
[1762482713641,0.04114685,156.4,156.37,2.09]
[1762482714337,0.04114685,156.4,156.39,2.09]
[1762482715937,7.83783392,156.44,156.39,2.09]
[1762482716135,3.13,156.49,156.39,2.09]
[1762482716332,4.70677453,156.48,156.39,2.09]
[1762482716533,4.70677453,156.47,156.39,2.09]
[1762482716834,3.17762624,156.45,156.41,0.04112093]
[1762482717035,3.17762624,156.45,156.41,2.1327807]
[1762482717238,3.13,156.44,156.41,0.0427807]
[1762482717431,7.83539355,156.43,156.41,0.0427807]
[1762482717636,4.70673968,156.42,156.41,0.0427807]
[1762482718029,3.13,156.43,156.41,0.0427807]
[1762482718233,3.17762624,156.45,156.41,0.0427807]
[1762482718434,4.70644399,156.44,156.41,2.1327807]
[1762482718735,3.17762624,156.45,156.41,2.1327807]
[1762482718935,4.70625979,156.44,156.41,2.1327807]
[1762482719241,3.17762624,156.45,156.41,2.1327807]
[1762482719738,3.13,156.43,156.41,0.0427807]
[1762482719929,7.83405039,156.42,156.41,0.0427807]
[1762482720429,9.11405039,156.42,156.34,2.09]
[1762482720630,3.13,156.4,156.34,7.8497]
[1762482720826,4.7063559,156.39,156.34,7.8497]
[1762482721033,3.13,156.43,156.34,2.09]
[1762482721233,4.70730787,156.42,156.38,2.09]
[1762482721538,3.13,156.4,156.38,0.04301214]
[1762482721730,0.04502656,156.42,156.38,0.04301214]
[1762482721931,3.17502656,156.42,156.38,7.89121214]
[1762482722132,3.17502656,156.42,156.38,2.13301214]
[1762482722436,7.83601616,156.41,156.38,0.04301214]
[1762482722633,0.04502656,156.42,156.38,0.04301214]
[1762482722833,0.04502656,156.42,156.38,2.13301214]
[1762482723338,0.04502656,156.42,156.4,2.09]
[1762482723840,0.04502656,156.42,156.38,0.04301214]
[1762482724143,0.04502656,156.42,156.39,2.09]
[1762482724626,0.04502656,156.42,156.4,5.7575]
[1762482724825,0.04502656,156.42,156.4,7.8475]
[1762482726735,3.17502656,156.42,156.38,5.80121214]
[1762482726933,3.17502656,156.42,156.38,0.04301214]
[1762482727135,3.13,156.4,156.38,0.04301214]
[1762482727336,7.84014547,156.39,156.38,0.04301214]
[1762482727844,7.84014547,156.39,156.33,14.18]
[1762482728041,4.71014547,156.38,156.34,2.09]
[1762482728238,4.71493737,156.37,156.34,2.09]
[1762482728543,8.8882,156.39,156.33,14.18]
[1762482728544,7.84493737,156.36,156.33,14.18]
[1762482728843,3.1757157,156.36,156.33,14.22576657]
[1762482729043,0.0457157,156.36,156.33,16.31576657]
[1762482729245,0.0457157,156.36,156.34,2.09]
[1762482729538,0.0457157,156.36,156.34,5.7596]
[1762482730339,0.0457157,156.36,156.33,14.22576657]
[1762482730643,0.0457157,156.36,156.34,2.09]
[1762482731046,0.0457157,156.36,156.34,7.8497]
[1762482731543,0.0457157,156.36,156.35,2.09]
[1762482732040,3.16,156.45,156.37,2.09]
[1762482732248,4.69224459,156.44,156.37,2.09]
[1762482732441,3.16,156.45,156.39,2.09]
[1762482732640,7.84996402,156.44,156.39,2.09]
[1762482732837,3.16,156.42,156.35,4.3183365]
[1762482733036,3.16,156.42,156.4,0.04199485]
[1762482733242,4.69135051,156.41,156.4,0.04199485]
[1762482734444,7.85135051,156.41,156.4,0.04199485]
[1762482735040,4.69124636,156.41,156.4,2.13199485]
[1762482735238,0.04138332,156.43,156.4,2.13199485]
[1762482735447,3.16,156.41,156.4,0.04199485]
[1762482735640,7.85101622,156.41,156.4,0.04199485]
[1762482735840,12.83024644,156.41,156.4,0.04199485]
[1762482736248,3.16,156.4,156.33,14.18]
[1762482736449,4.69101622,156.39,156.33,14.18]
[1762482736641,7.85101622,156.38,156.33,16.27]
[1762482736842,4.69101622,156.37,156.34,2.09]
[1762482737040,3.16,156.42,156.34,2.09]
[1762482737246,0.04511422,156.4,156.36,2.13864232]
[1762482737946,0.04511422,156.4,156.36,7.89754232]
[1762482738944,0.04511422,156.4,156.37,7.8485]
[1762482739148,0.04511422,156.4,156.38,2.09]
[1762482739348,0.04511422,156.4,156.36,2.13864232]
[1762482739556,0.04511422,156.4,156.36,7.89754232]
[1762482739852,0.04511422,156.4,156.37,2.09]
[1762482740747,3.20511422,156.4,156.37,5.7586]
[1762482741051,7.85316753,156.39,156.36,0.04864232]
[1762482741358,3.16,156.39,156.36,0.04864232]
[1762482742246,4.6939674,156.38,156.36,0.04864232]
[1762482742446,3.16,156.39,156.36,0.04864232]
[1762482742743,4.6937523,156.38,156.36,0.04864232]
[1762482742944,3.16,156.39,156.36,0.04864232]
[1762482743147,4.6937523,156.38,156.36,0.04864232]
[1762482743349,3.16,156.39,156.36,0.04864232]
[1762482743552,4.69385114,156.38,156.36,0.04864232]
[1762482743750,3.16,156.39,156.36,0.04864232]
[1762482746156,0.04511422,156.4,156.37,2.09]
[1762482746355,7.8547792,156.39,156.36,0.04864232]
[1762482746556,3.16,156.37,156.36,0.04864232]
[1762482746757,7.8547792,156.37,156.36,0.04864232]
[1762482747658,3.16,156.36,156.26,2.09]
[1762482747854,3.16,156.34,156.26,2.09]
[1762482748051,7.8547792,156.33,156.27,5.7623]
[1762482748252,7.8547792,156.32,156.27,7.8523]
[1762482748451,3.16,156.32,156.27,7.8523]
[1762482748652,0.047184,156.31,156.28,0.04479743]
[1762482748950,3.207184,156.31,156.28,0.04479743]
[1762482751454,7.85010062,156.3,156.28,0.04479743]
[1762482751655,3.16,156.3,156.28,0.04479743]
[1762482753360,0.047184,156.31,156.28,0.04479743]
[1762482753561,0.047184,156.31,156.3,2.09]
[1762482754066,3.16,156.36,156.31,2.09]
[1762482754266,3.16,156.4,156.33,2.09]
[1762482754454,4.680324,156.39,156.33,2.09]
[1762482754654,3.16,156.37,156.33,2.09]
[1762482754959,0.04082398,156.37,156.34,2.09]
[1762482755163,3.16,156.47,156.36,2.09]
[1762482755364,4.6768291,156.46,156.44,5.7559]
[1762482755562,3.16,156.5,156.45,2.09]
[1762482755760,4.67411519,156.49,156.45,2.09]
[1762482755956,4.96117758,156.53,156.46,7.8454]
[1762482756161,0.04380382,156.51,156.48,0.04587781]
[1762482756562,0.04380382,156.51,156.49,2.09]
[1762482757065,5.96102383,156.6,156.49,2.09]
[1762482757066,8.11801501,156.58,156.5,2.09]
[1762482757374,3.16,156.62,156.51,2.09]
[1762482757563,4.66225882,156.61,156.53,2.09]
[1762482757761,3.16,156.62,156.53,4.3183365]
[1762482757963,4.66109563,156.61,156.53,6.4083365]
[1762482758161,4.66109563,156.61,156.52,65.72]
[1762482758162,0.04230874,156.59,156.55,2.13766527]
[1762482758365,0.04230874,156.59,156.55,2.13299115]
[1762482758875,0.04230874,156.59,156.57,2.09]
[1762482760358,0.04230874,156.59,156.57,3.37]
[1762482760664,4.66029371,156.67,156.59,2.09]
[1762482760863,3.03,156.68,156.59,67.79]
[1762482761064,3.03,156.68,156.6,5.7502]
[1762482761275,3.03,156.68,156.61,2.09]
[1762482761568,0.04494481,156.66,156.64,2.09]
[1762482761766,0.04065878,156.67,156.64,2.09]
[1762482762063,0.04065878,156.67,156.64,2.13741515]
[1762482762468,0.04065878,156.67,156.65,67.81]
[1762482763071,3.1,156.76,156.66,2.09]
[1762482764163,3.1,156.76,156.69,2.13556299]
[1762482764164,0.04285955,156.73,156.69,2.13556299]
[1762482765065,3.14285955,156.73,156.69,0.04556299]
[1762482765256,0.04285955,156.73,156.69,0.04556299]
[1762482765457,0.04285955,156.73,156.69,2.13556299]
[1762482767065,3.14285955,156.73,156.69,0.04556299]
[1762482767866,0.04285955,156.73,156.69,2.13556299]
[1762482768670,10.52685374,156.85,156.69,2.13556299]
[1762482768671,3.1,156.83,156.69,2.13556299]
[1762482768868,3.1,156.83,156.7,2.09]
[1762482769176,3.1,156.83,156.74,7.835]
[1762482769370,3.1,156.83,156.75,2.09]
[1762482769670,3.1,156.83,156.76,5.7443]
[1762482769873,0.04405748,156.81,156.77,0.04806131]
[1762482770271,3.14405748,156.81,156.77,0.04806131]
[1762482772076,8.88665748,156.81,156.77,0.04806131]
[1762482772278,3.1,156.8,156.69,73.5966]
[1762482773282,0.04568154,156.76,156.73,0.04890145]
[1762482773780,0.04568154,156.76,156.73,2.13890145]
[1762482774079,3.1,156.84,156.74,2.09]
[1762482774875,0.0456092,156.81,156.77,0.04732342]
[1762482775381,3.1456092,156.81,156.77,0.04732342]
[1762482778680,0.0456092,156.81,156.77,2.13732342]
[1762482779777,0.0456092,156.81,156.77,0.04732342]
[1762482780280,3.1456092,156.81,156.77,0.04732342]
[1762482780671,0.0456092,156.81,156.77,2.13732342]
[1762482781279,0.0456092,156.81,156.78,5.7436]
[1762482781584,0.0456092,156.81,156.79,2.09]
[1762482781979,3.1,156.89,156.81,2.09]
[1762482782186,3.1,156.89,156.77,2.09]
[1762482782485,3.1,156.89,156.75,7.31989529]
[1762482782486,3.1,156.88,156.78,2.09]
[1762482782689,3.1,156.88,156.74,2.09]
[1762482782982,261.69880804,156.93,156.79,0.04613533]
[1762482782983,5.7428,156.81,156.79,0.04613533]
[1762482783180,3.1,156.8,156.78,0.04783216]
[1762482783384,3.1,156.8,156.77,0.04432713]
[1762482783582,8.88833218,156.8,156.77,0.04869835]
[1762482783783,3.14523218,156.8,156.77,0.04869835]
[1762482784178,0.04523218,156.8,156.77,2.13869835]
[1762482786389,3.1,156.89,156.79,5.743]
[1762482786684,3.1,156.89,156.78,2.09]
[1762482786987,3.1,156.87,156.78,2.09]
[1762482787389,0.03809576,156.84,156.81,0.04820162]
[1762482787785,3.13809576,156.84,156.81,0.04820162]
[1762482787985,0.03809576,156.84,156.81,0.04820162]
[1762482788381,0.03809576,156.84,156.81,2.13820162]
[1762482788581,3.13809576,156.84,156.81,0.04820162]
[1762482788786,0.03809576,156.84,156.81,0.04820162]
[1762482789186,0.03809576,156.84,156.81,2.13820162]
[1762482790692,0.03809576,156.84,156.83,2.07]
[1762482791184,2.97,156.91,156.83,2.07]
[1762482792091,2.97,156.95,156.85,2.11907347]
[1762482792291,2.97,156.96,156.88,5.7397]
[1762482792591,2.97,156.96,156.88,5.78683687]
[1762482792981,7.31989529,157.03,156.88,2.11713687]
[1762482793194,2.97,157.0,156.94,0.04772398]
[1762482793580,2.97,156.98,156.94,0.04772398]
[1762482794991,2.97,157.02,156.94,2.11772398]
[1762482795289,2.97,157.02,156.96,0.04719178]
[1762482795689,5.7362,156.99,156.96,0.04719178]
[1762482795893,2.97,156.98,156.96,0.04719178]
[1762482796393,2.97,156.99,156.96,0.04719178]
[1762482796589,2.97,157.04,156.96,2.11719178]
[1762482796890,2.97,157.08,156.98,7.85125861]
[1762482797090,2.97,157.08,157.01,0.04251662]
[1762482797491,2.97,157.04,157.01,0.04251662]
[1762482800894,2.97,157.08,157.01,0.04251662]
[1762482802198,2.97,157.07,157.01,0.04251662]
[1762482804991,9.3378708,157.09,157.01,2.11251662]
[1762482805295,4.78601028,157.1,157.01,2.11251662]
[1762482805496,12.3078708,157.11,157.04,0.04554382]
[1762482806098,4.55186052,157.1,157.04,0.04554382]
[1762482806389,2.97,157.1,157.04,0.04554382]
[1762482806596,2.97,157.08,157.04,0.04554382]
[1762482806789,2.97,157.06,157.04,0.04554382]
[1762482806989,2.97,157.03,156.94,21.66236845]
[1762482807199,2.97,157.03,156.94,2.07]
[1762482807400,2.97,157.03,156.95,2.07]
[1762482807902,2.97,157.03,156.91,2.07]
[1762482808100,2.97,157.0,156.97,0.04725749]
[1762482808289,2.97,157.0,156.97,0.04283614]
[1762482808694,2.97,156.99,156.88,2.07]
[1762482808897,9.35577913,157.0,156.89,2.07]
[1762482809200,2.97,157.01,156.91,2.07]
[1762482809396,2.97,157.01,156.91,7.8085]
[1762482809699,0.04574436,156.98,156.94,2.11529309]
[1762482810596,0.04574436,156.98,156.95,2.07]
[1762482810995,0.04574436,156.98,156.97,2.07]
[1762482811199,7.31989529,157.11,156.97,2.07]
[1762482811200,9.35576009,157.06,156.97,2.07]
[1762482811501,2.97,157.08,157.0,2.07]
[1762482811797,12.32196521,157.08,157.0,2.07]
[1762482812101,3.0126356,157.06,157.02,0.04473893]
[1762482812306,3.0126356,157.06,157.02,0.04093459]
[1762482812803,2.97,157.04,157.02,0.04093459]
[1762482812997,2.97,157.03,157.02,0.04093459]
[1762482813601,7.7680609,157.04,157.02,0.04093459]
[1762482813796,2.97,157.03,157.02,0.04093459]
[1762482813998,2.97,157.03,156.92,7.8084]
[1762482814295,2.97,157.01,156.92,2.07]
[1762482814503,12.33309899,157.0,156.92,2.07]
[1762482814707,7.77135796,156.99,156.92,2.07]
[1762482814892,2.97,156.99,156.92,2.07]
[1762482815092,0.04667758,156.97,156.94,0.04839227]
[1762482815595,3.01667758,156.97,156.94,0.04839227]
[1762482815799,2.97,156.95,156.84,2.07]
[1762482815995,5.76219678,157.0,156.84,2.07]
[1762482815996,2.97,156.98,156.84,2.07]
[1762482816600,2.97,156.97,156.89,5.7393]
[1762482816805,0.04353562,156.95,156.91,0.04184384]
[1762482817705,3.01353562,156.95,156.91,0.04184384]
[1762482821605,0.04353562,156.95,156.91,2.12184384]
[1762482821899,3.27353562,156.95,156.91,0.04184384]
[1762482828305,0.04353562,156.95,156.91,2.12184384]
[1762482829802,3.23,157.02,156.94,2.08]
[1762482829997,3.23,157.06,156.95,2.08]
[1762482830302,7.84906983,157.05,157.0,5.7354]
[1762482830502,4.61906983,157.04,157.0,5.7354]
[1762482830704,3.23,157.05,157.0,5.7762449]
[1762482830898,0.04826751,157.04,157.0,5.7762449]
[1762482831305,0.04826751,157.04,157.02,2.08]
[1762482831802,0.04826751,157.04,157.02,7.8146]
[1762482832002,3.23,157.09,157.03,2.08]
[1762482832413,3.23,157.13,157.05,5.7335]
[1762482832720,3.23,157.11,157.0,6.36785689]
[1762482832905,7.85163324,157.1,157.01,2.08]
[1762482833207,5.76219678,157.15,157.01,2.08]
[1762482833208,0.04015933,157.07,157.04,0.04353286]
[1762482833409,0.04015933,157.07,157.04,2.12655238]
[1762482833804,0.04015933,157.07,157.05,7.8134]
[1762482834000,0.04015933,157.07,157.04,0.04655238]
[1762482838613,0.04015933,157.07,157.04,2.12655238]
[1762482839409,0.04015933,157.07,157.05,5.7334]
[1762482839809,3.27015933,157.07,157.04,0.04655238]
[1762482840416,3.23,157.05,156.96,5.74]
[1762482840616,3.23,157.03,156.96,7.82]
[1762482840817,3.23,157.07,156.97,2.08]
[1762482841017,3.23,157.05,156.97,2.08]
[1762482841210,5.76219678,157.12,156.97,2.08]
[1762482841211,3.23,157.03,156.97,2.08]
[1762482841416,3.23,157.01,156.98,0.04260028]
[1762482841611,3.27321195,157.01,156.98,0.04727828]
[1762482842716,3.23,157.0,156.98,0.04727828]
[1762482843826,3.23,156.98,156.92,2.08]
[1762482844324,3.23,156.98,156.91,5.7388]
[1762482844711,3.23,156.95,156.93,0.04907935]
[1762482844912,3.23,156.95,156.92,0.04338933]
[1762482845420,3.27457938,156.96,156.92,0.04338933]
[1762482848613,0.04457938,156.96,156.95,2.08]
[1762482849020,4.62843917,157.02,156.95,2.08]
[1762482849219,3.23,157.03,156.95,2.08]
[1762482850224,3.23,157.0,156.97,0.0451682]
[1762482850428,3.23,157.0,156.97,0.04909044]
[1762482852728,3.09,156.98,156.89,4.28785689]
[1762482852921,4.28785689,157.05,156.87,2.07]
[1762482852922,3.09,156.95,156.87,2.07]
[1762482853720,3.13676452,156.93,156.89,0.04399785]
[1762482854125,3.13676452,156.93,156.82,2.07]
[1762482854329,3.09,156.91,156.82,2.07]
[1762482854934,3.09,156.91,156.78,2.07]
[1762482855232,3.09,156.85,156.83,0.04679472]
[1762482855430,3.09,156.85,156.82,0.04860849]
[1762482856131,3.13085586,156.86,156.82,0.04860849]
[1762482856819,3.09,156.95,156.82,3.39860849]
[1762482857023,3.09,156.93,156.83,69.8116]
[1762482857223,3.09,156.93,156.83,2.07]
[1762482857633,3.09,156.93,156.84,4.28785689]
[1762482857821,3.09,156.93,156.87,0.04305879]
[1762482858026,0.04540333,156.9,156.88,2.07]
[1762482858219,0.04540333,156.9,156.89,7.8093]
[1762482858421,3.09,156.97,156.89,7.8093]
[1762482858422,3.09,156.97,156.89,2.07]
[1762482858625,3.09,156.97,156.9,6.35785689]
[1762482859330,0.04633954,156.95,156.92,0.04898328]
[1762482860034,3.13633954,156.95,156.92,0.04898328]
[1762482864538,0.04633954,156.95,156.92,2.11898328]
[1762482865025,0.04633954,156.95,156.93,7.8078]
[1762482866138,0.04633954,156.95,156.93,2.07]
[1762482866435,3.13633954,156.95,156.92,0.04898328]
[1762482866636,3.13633954,156.95,156.92,5.78728328]
[1762482866838,3.13633954,156.95,156.92,2.11898328]
[1762482866839,0.04633954,156.95,156.92,2.11898328]
[1762482867035,0.04633954,156.95,156.92,3.39898328]
[1762482867339,3.09,157.03,156.97,5.7363]
[1762482867533,3.09,157.02,156.93,2.07]
[1762482867734,3.09,157.02,156.93,5.7379]
[1762482867939,4.28785689,157.07,156.91,6.35785689]
[1762482867940,3.09,157.01,156.91,2.07]
[1762482868136,3.09,157.01,156.9,4.28785689]
[1762482868137,0.0406874,156.98,156.94,2.1102191]
[1762482868435,0.0406874,156.98,156.94,7.8477191]
[1762482868628,3.1306874,156.98,156.94,0.0402191]
[1762482871332,3.09,156.96,156.94,0.0402191]
[1762482872938,3.1306874,156.98,156.94,0.0402191]
[1762482873734,3.1306874,156.98,156.94,2.1102191]
[1762482873942,3.1306874,156.98,156.94,7.8476191]
[1762482874332,3.1306874,156.98,156.94,0.0402191]
[1762482874537,3.09,156.97,156.94,0.0402191]
[1762482876745,3.1306874,156.98,156.94,0.0402191]
[1762482877442,3.1306874,156.98,156.94,5.7777191]
[1762482879547,0.0406874,156.98,156.95,5.7371]
[1762482879949,0.0406874,156.98,156.95,7.8171]
[1762482880353,0.0406874,156.98,156.95,5.7371]
[1762482880651,2.9606874,156.98,156.95,5.7371]
[1762482881749,2.9606874,156.98,156.94,0.0402191]
[1762482882441,0.0406874,156.98,156.94,0.0402191]
[1762482882758,2.9606874,156.98,156.94,5.7777191]
[1762482883050,2.9606874,156.98,156.94,0.0402191]
[1762482884450,7.57909391,156.97,156.94,0.0402191]
[1762482884650,2.92,156.97,156.94,0.0402191]
[1762482888853,0.0406874,156.98,156.94,2.1202191]
[1762482889053,4.66204121,156.97,156.94,2.1202191]
[1762482889250,2.9606874,156.98,156.94,2.1202191]
[1762482889452,4.66164207,156.97,156.94,2.1202191]
[1762482889653,2.9606874,156.98,156.94,2.1202191]
[1762482889950,4.66164207,156.97,156.94,2.1202191]
[1762482890151,2.9606874,156.98,156.94,2.1202191]
[1762482890357,4.6616759,156.97,156.94,2.1202191]
[1762482890556,2.9606874,156.98,156.94,2.1202191]
[1762482890747,4.6616759,156.97,156.94,2.1202191]
[1762482890950,0.0406874,156.98,156.94,2.1202191]
[1762482891350,2.9606874,156.98,156.94,7.8577191]
[1762482891752,0.0406874,156.98,156.94,2.1202191]
[1762482892160,2.9606874,156.98,156.94,2.1202191]
[1762482892858,2.92,156.96,156.94,0.0402191]
[1762482893247,0.0406874,156.98,156.94,0.0402191]
[1762482893448,2.9606874,156.98,156.94,2.1202191]
[1762482893960,0.0406874,156.98,156.94,2.1202191]
[1762482894757,2.9606874,156.98,156.94,7.8578191]
[1762482894951,2.9606874,156.98,156.94,0.0402191]
[1762482895149,2.92,156.96,156.94,0.0402191]
[1762482895850,7.58281124,156.95,156.94,0.0402191]
[1762482896762,2.92,156.95,156.94,0.0402191]
[1762482899363,7.58434633,156.95,156.94,0.0402191]
[1762482899562,2.92,156.94,156.88,65.5]
[1762482899759,2.92,156.93,156.88,67.58]
[1762482899962,2.92,156.93,156.89,5.7394]
[1762482900562,2.96558226,156.93,156.89,5.78249083]
[1762482901163,7.5943874,156.92,156.89,5.78249083]
[1762482901365,2.92,156.92,156.89,5.78249083]
[1762482901570,2.92,156.92,156.9,5.739]
[1762482901767,2.92,156.92,156.89,0.04309083]
[1762482902164,2.92,156.9,156.89,0.04309083]
[1762482902574,2.92,156.89,156.81,2.08]
[1762482902766,4.67733278,156.88,156.81,2.08]
[1762482903068,2.92,156.94,156.85,2.08]
[1762482903267,2.92,156.94,156.86,67.58]
[1762482903466,2.92,156.91,156.88,0.04779851]
[1762482903663,2.96210759,156.91,156.88,0.04068188]
[1762482905069,0.04210759,156.91,156.88,3.40068188]
[1762482905276,0.04210759,156.91,156.88,0.04068188]
[1762482905277,2.96210759,156.91,156.88,0.04068188]
[1762482905475,0.04210759,156.91,156.88,0.04068188]
[1762482905770,0.04210759,156.91,156.88,5.78038188]
[1762482906268,2.96210759,156.91,156.88,0.04068188]
[1762482906571,2.92,156.99,156.9,2.08]
[1762482906776,2.92,156.99,156.92,5.7383]
[1762482906967,2.92,156.97,156.92,5.7383]
[1762482907174,2.92,156.97,156.86,67.58]
[1762482907375,2.92,156.94,156.86,73.3204]
[1762482907574,2.92,156.91,156.88,0.04049639]
[1762482907879,2.9640948,156.91,156.88,0.04546045]
[1762482909276,8.7030948,156.91,156.88,0.04546045]
[1762482909478,2.92,156.9,156.88,0.04546045]
[1762482912579,3.1840948,156.91,156.88,0.04546045]
[1762482912984,0.0440948,156.91,156.89,2.08]
[1762482913280,3.14,157.01,156.9,2.08]
[1762482913482,3.14,157.01,156.96,7.8168]
[1762482914082,3.18094272,157.0,156.97,0.04414951]
[1762482914981,0.04094272,157.0,156.97,2.12414951]
[1762482915785,0.04094272,157.0,156.97,0.04414951]
[1762482915980,3.18094272,157.0,156.97,0.04414951]
[1762482916685,0.04094272,157.0,156.97,2.12414951]
[1762482917687,0.04094272,157.0,156.97,0.04414951]
[1762482917882,0.04094272,157.0,156.97,2.12414951]
[1762482918386,0.04094272,157.0,156.97,7.86054951]
[1762482918586,0.04094272,157.0,156.97,2.12414951]
[1762482918892,0.04094272,157.0,156.97,0.04414951]
[1762482920980,3.18094272,157.0,156.97,0.04414951]
[1762482921293,0.04094272,157.0,156.97,2.12414951]
[1762482922085,3.18094272,157.0,156.97,0.04414951]
[1762482923590,3.14,156.98,156.97,0.04414951]
[1762482923984,3.14,156.98,156.93,65.48]
[1762482924990,3.14,156.98,156.94,0.0484028]
[1762482925397,3.14,156.96,156.94,0.0484028]
[1762482925989,3.14,156.95,156.94,0.0484028]
[1762482926796,7.72149927,156.95,156.94,0.0484028]
[1762482928195,7.72149927,156.95,156.88,2.08]
[1762482928396,4.58149927,156.94,156.88,2.08]
[1762482928597,8.8776,156.95,156.88,2.08]
[1762482928897,4.58195383,156.94,156.88,2.08]
[1762482929088,3.1870715,156.93,156.89,0.04292259]
[1762482930988,3.14,156.91,156.89,0.04292259]
[1762482931191,3.1870715,156.93,156.89,0.04292259]
[1762482931792,3.14,156.92,156.89,0.04292259]
[1762482932391,0.0470715,156.93,156.89,2.12292259]
[1762482932603,3.1870715,156.93,156.89,0.04292259]
[1762482933399,8.9254715,156.93,156.89,0.04292259]
[1762482933585,3.14,156.92,156.89,0.04292259]
[1762482934392,3.14,156.9,156.89,0.04292259]